[Event "*** Titled Tuesday Blitz"]
[Site "Chess.com"]
[Date "2021.04.06"]
[Round "8"]
[White "Zq1"]
[Black "Supernotar"]
[Result "0-1"]
[WhiteElo "2552"]
[BlackElo "2703"]
[TimeControl "180+1"]
[EndTime "11:27:03 PDT"]
[Termination "Supernotar won by resignation"]

1. d4 {[%clk 0:03:00.9]} 1... d5 {[%clk 0:03:00.1]} 2. c4 {[%clk 0:03:00.6]}
2... dxc4 {[%clk 0:03:00.4]} 3. Nf3 {[%clk 0:02:59.8]} 3... Nf6 {[%clk
0:03:00.7]} 4. e3 {[%clk 0:02:59.8]} 4... e6 {[%clk 0:03:01.2]} 5. Bxc4 {[%clk
0:02:59.3]} 5... a6 {[%clk 0:03:01.8]} 6. Bb3 {[%clk 0:02:57.8]} 6... b5 {[%clk
0:03:01.7]} 7. a4 {[%clk 0:02:56.4]} 7... b4 {[%clk 0:03:01.8]} 8. O-O {[%clk
0:02:55.9]} 8... Bb7 {[%clk 0:03:01.7]} 9. Qe2 {[%clk 0:02:54.8]} 9... Nbd7
{[%clk 0:03:01.8]} 10. Rd1 {[%clk 0:02:54.5]} 10... c5 {[%clk 0:03:00.6]} 11.
Nbd2 {[%clk 0:02:53.1]} 11... Be7 {[%clk 0:02:59.3]} 12. e4 {[%clk 0:02:52.7]}
12... O-O {[%clk 0:02:55.6]} 13. e5 {[%clk 0:02:51.8]} 13... Nd5 {[%clk
0:02:55.6]} 14. Ne4 {[%clk 0:02:48.9]} 14... cxd4 {[%clk 0:02:54.8]} 15. Rxd4
{[%clk 0:02:42.1]} 15... h6 {[%clk 0:02:37.9]} 16. h3 {[%clk 0:02:38.8]} 16...
Qc7 {[%clk 0:02:33.8]} 17. Bd2 {[%clk 0:02:34.7]} 17... Nxe5 {[%clk 0:02:30.1]}
18. Rc1 {[%clk 0:02:30.2]} 18... Nxf3+ {[%clk 0:02:25.8]} 19. Qxf3 {[%clk
0:02:29.2]} 19... Qe5 {[%clk 0:02:25.9]} 20. Rdc4 {[%clk 0:02:17.4]} 20... Qxb2
{[%clk 0:02:09.7]} 21. R1c2 {[%clk 0:02:10.4]} 21... Qa1+ {[%clk 0:02:06.7]} 22.
Rc1 {[%clk 0:02:08.6]} 22... Qe5 {[%clk 0:02:05.5]} 23. Nc5 {[%clk 0:02:05.5]}
23... Bxc5 {[%clk 0:01:58.7]} 24. Rxc5 {[%clk 0:02:05.4]} 24... Qd4 {[%clk
0:01:51.5]} 25. Be3 {[%clk 0:01:32.5]} 25... Nxe3 {[%clk 0:01:22.8]} 26. Qxb7
{[%clk 0:01:31.8]} 26... Nf5 {[%clk 0:01:21.9]} 27. R5c4 {[%clk 0:01:27.3]}
27... Qb2 {[%clk 0:01:17.7]} 28. Bd1 {[%clk 0:01:22.8]} 28... a5 {[%clk
0:01:12.2]} 29. Bg4 {[%clk 0:01:00.5]} 29... Nd6 {[%clk 0:01:10.4]} 0-1

[Event "*** Titled Tuesday Blitz"]
[Site "Chess.com"]
[Date "2021.04.06"]
[Round "8"]
[White "NiranjanNavalgund"]
[Black "TigranMukhutdinov"]
[Result "1-0"]
[WhiteElo "2509"]
[BlackElo "2591"]
[TimeControl "180+1"]
[EndTime "11:27:14 PDT"]
[Termination "NiranjanNavalgund won by resignation"]

1. e4 {[%clk 0:03:00.9]} 1... c5 {[%clk 0:02:59.9]} 2. d4 {[%clk 0:03:00]} 2...
cxd4 {[%clk 0:02:59.9]} 3. c3 {[%clk 0:03:00.1]} 3... dxc3 {[%clk 0:03:00.5]} 4.
Nf3 {[%clk 0:03:00.1]} 4... Nc6 {[%clk 0:02:57.5]} 5. Bc4 {[%clk 0:03:00.4]}
5... d6 {[%clk 0:02:57.4]} 6. O-O {[%clk 0:03:00.6]} 6... a6 {[%clk 0:02:57.2]}
7. Nxc3 {[%clk 0:03:00.6]} 7... Nf6 {[%clk 0:02:56.4]} 8. e5 {[%clk 0:02:58]}
8... dxe5 {[%clk 0:02:55.8]} 9. Qxd8+ {[%clk 0:02:57.6]} 9... Nxd8 {[%clk
0:02:56.7]} 10. Nxe5 {[%clk 0:02:57.5]} 10... Be6 {[%clk 0:02:53.4]} 11. Bf4
{[%clk 0:02:50.4]} 11... Bxc4 {[%clk 0:02:36.1]} 12. Nxc4 {[%clk 0:02:49.9]}
12... Ne6 {[%clk 0:02:21.2]} 13. Nb6 {[%clk 0:02:45.7]} 13... Rd8 {[%clk
0:02:19.5]} 14. Bg3 {[%clk 0:02:46]} 14... Nd7 {[%clk 0:02:12.4]} 15. Nbd5
{[%clk 0:02:36.9]} 15... f6 {[%clk 0:02:10.4]} 16. Rfe1 {[%clk 0:02:35.7]} 16...
Kf7 {[%clk 0:02:09.9]} 17. Rad1 {[%clk 0:02:34.3]} 17... Rc8 {[%clk 0:01:12.5]}
18. Rxe6 {[%clk 0:02:28.1]} 18... Kxe6 {[%clk 0:01:10.9]} 19. Nf4+ {[%clk
0:02:28.1]} 19... Kf7 {[%clk 0:01:11.2]} 20. Rxd7 {[%clk 0:02:27.5]} 20... g5
{[%clk 0:01:09]} 21. Nfd5 {[%clk 0:02:26.9]} 21... h5 {[%clk 0:01:09.5]} 22.
Rxb7 {[%clk 0:02:26.1]} 22... h4 {[%clk 0:01:09.5]} 23. Bc7 {[%clk 0:02:25.3]}
23... g4 {[%clk 0:01:05.6]} 24. Bd6 {[%clk 0:02:21.8]} 24... Rh5 {[%clk
0:01:02.6]} 25. Bxe7 {[%clk 0:02:20.6]} 25... Rxd5 {[%clk 0:00:51.6]} 26. Bc5+
{[%clk 0:02:07.3]} 26... Ke6 {[%clk 0:00:50]} 27. Nxd5 {[%clk 0:02:07.7]} 27...
Kxd5 {[%clk 0:00:46.2]} 28. Be3 {[%clk 0:02:07.5]} 28... f5 {[%clk 0:00:40.6]}
29. Kf1 {[%clk 0:02:07]} 29... Bd6 {[%clk 0:00:40.2]} 30. g3 {[%clk 0:02:07]}
30... h3 {[%clk 0:00:39.5]} 31. Rb6 {[%clk 0:02:03.7]} 31... Be5 {[%clk
0:00:37]} 32. Rxa6 {[%clk 0:02:02.9]} 32... Ke4 {[%clk 0:00:35.9]} 33. Re6
{[%clk 0:02:00.3]} 33... Rd8 {[%clk 0:00:29.6]} 34. Ke2 {[%clk 0:01:54.2]} 34...
Rb8 {[%clk 0:00:26.6]} 35. Rxe5+ {[%clk 0:01:53.5]} 1-0

[Event "*** Titled Tuesday Blitz"]
[Site "Chess.com"]
[Date "2021.04.06"]
[Round "8"]
[White "albi1999"]
[Black "Marianov_Podstavnikov"]
[Result "0-1"]
[WhiteElo "2590"]
[BlackElo "2404"]
[TimeControl "180+1"]
[EndTime "11:27:17 PDT"]
[Termination "Marianov_Podstavnikov won by resignation"]

1. d4 {[%clk 0:03:00.9]} 1... Nf6 {[%clk 0:02:59.3]} 2. c4 {[%clk 0:02:59.1]}
2... e6 {[%clk 0:02:58.6]} 3. Nf3 {[%clk 0:02:57.9]} 3... d5 {[%clk 0:02:58.3]}
4. g3 {[%clk 0:02:58]} 4... Be7 {[%clk 0:02:57.4]} 5. Bg2 {[%clk 0:02:58.2]}
5... O-O {[%clk 0:02:57.5]} 6. Qb3 {[%clk 0:02:54]} 6... c5 {[%clk 0:02:51.6]}
7. dxc5 {[%clk 0:02:52.7]} 7... Bxc5 {[%clk 0:02:51.1]} 8. cxd5 {[%clk
0:02:51.3]} 8... Nxd5 {[%clk 0:02:29.1]} 9. O-O {[%clk 0:02:49.3]} 9... Nc6
{[%clk 0:02:29.2]} 10. a3 {[%clk 0:02:43.8]} 10... Qe7 {[%clk 0:02:09.4]} 11.
Rd1 {[%clk 0:02:37.9]} 11... Rd8 {[%clk 0:02:07.8]} 12. Nbd2 {[%clk 0:02:31.6]}
12... Bd7 {[%clk 0:02:06.7]} 13. Nc4 {[%clk 0:02:26.6]} 13... Be8 {[%clk
0:02:01.2]} 14. Bd2 {[%clk 0:02:25.2]} 14... Rac8 {[%clk 0:01:58.3]} 15. Rac1
{[%clk 0:02:24.4]} 15... Nd4 {[%clk 0:01:55.1]} 16. Nxd4 {[%clk 0:02:23.3]}
16... Bxd4 {[%clk 0:01:55.6]} 17. e4 {[%clk 0:01:49.6]} 17... Nb6 {[%clk
0:01:51.2]} 18. Be3 {[%clk 0:01:19.8]} 18... Bxe3 {[%clk 0:01:43.1]} 19. Nxe3
{[%clk 0:01:17.5]} 19... Rxd1+ {[%clk 0:01:41.3]} 20. Rxd1 {[%clk 0:01:15.1]}
20... Ba4 {[%clk 0:01:40.6]} 21. Qd3 {[%clk 0:00:59.4]} 21... Bxd1 {[%clk
0:01:39.4]} 22. Qxd1 {[%clk 0:01:00.3]} 22... Rd8 {[%clk 0:01:38.7]} 23. Qb3
{[%clk 0:00:57.9]} 23... Qc5 {[%clk 0:01:35.6]} 24. h4 {[%clk 0:00:56]} 24...
Rd2 {[%clk 0:01:29.1]} 25. a4 {[%clk 0:00:36.1]} 25... Qc1+ {[%clk 0:01:28.3]}
26. Kh2 {[%clk 0:00:35.9]} 26... Qxb2 {[%clk 0:01:25.8]} 0-1

[Event "*** Titled Tuesday Blitz"]
[Site "Chess.com"]
[Date "2021.04.06"]
[Round "8"]
[White "lucachess49"]
[Black "Chamal_Gedgafov"]
[Result "1-0"]
[WhiteElo "2414"]
[BlackElo "2203"]
[TimeControl "180+1"]
[EndTime "11:27:18 PDT"]
[Termination "lucachess49 won by resignation"]

1. d4 {[%clk 0:03:00.9]} 1... Nf6 {[%clk 0:02:59.2]} 2. c4 {[%clk 0:03:01.3]}
2... e6 {[%clk 0:02:59.8]} 3. Nc3 {[%clk 0:03:00.4]} 3... Bb4 {[%clk 0:03:00.3]}
4. e3 {[%clk 0:02:55.3]} 4... c5 {[%clk 0:02:59.9]} 5. Ne2 {[%clk 0:02:51.3]}
5... cxd4 {[%clk 0:02:56.7]} 6. exd4 {[%clk 0:02:50.9]} 6... O-O {[%clk
0:02:57]} 7. a3 {[%clk 0:02:45.3]} 7... Be7 {[%clk 0:02:56.2]} 8. d5 {[%clk
0:02:33.8]} 8... d6 {[%clk 0:02:54.9]} 9. Ng3 {[%clk 0:02:12.7]} 9... e5 {[%clk
0:02:50.2]} 10. Be2 {[%clk 0:02:11.9]} 10... Nbd7 {[%clk 0:02:45.2]} 11. O-O
{[%clk 0:02:00.3]} 11... a5 {[%clk 0:02:43.2]} 12. Be3 {[%clk 0:01:53.4]} 12...
b6 {[%clk 0:02:28]} 13. Nf5 {[%clk 0:01:46.7]} 13... Nc5 {[%clk 0:02:26.3]} 14.
Nxe7+ {[%clk 0:01:45.2]} 14... Qxe7 {[%clk 0:02:25.2]} 15. b4 {[%clk 0:01:44.6]}
15... axb4 {[%clk 0:02:18.5]} 16. axb4 {[%clk 0:01:45.5]} 16... Rxa1 {[%clk
0:02:16.7]} 17. Qxa1 {[%clk 0:01:46.4]} 17... Nb3 {[%clk 0:02:14.4]} 18. Qd1
{[%clk 0:01:45.2]} 18... Nd4 {[%clk 0:02:04.8]} 19. Bxd4 {[%clk 0:01:45]} 19...
exd4 {[%clk 0:02:05.7]} 20. Qxd4 {[%clk 0:01:45.5]} 20... Qe5 {[%clk 0:01:53.4]}
21. Qxe5 {[%clk 0:01:33.9]} 21... dxe5 {[%clk 0:01:54.3]} 22. c5 {[%clk
0:01:31.4]} 22... bxc5 {[%clk 0:01:53.4]} 23. bxc5 {[%clk 0:01:32.3]} 23... Rd8
{[%clk 0:01:49.7]} 24. Bc4 {[%clk 0:01:30.3]} 24... Kf8 {[%clk 0:01:44.5]} 25.
Rb1 {[%clk 0:01:24.5]} 25... Bf5 {[%clk 0:01:40.7]} 26. Rb7 {[%clk 0:01:19.7]}
26... Ne4 {[%clk 0:01:39.6]} 27. Nxe4 {[%clk 0:00:45]} 27... Bxe4 {[%clk
0:01:40.5]} 28. c6 {[%clk 0:00:42.2]} 28... Bxd5 {[%clk 0:01:29.5]} 29. c7
{[%clk 0:00:40.4]} 29... Ra8 {[%clk 0:01:25.7]} 30. Rb8+ {[%clk 0:00:38.1]}
30... Ke7 {[%clk 0:01:22.5]} 31. Rxa8 {[%clk 0:00:37.9]} 1-0

[Event "*** Titled Tuesday Blitz"]
[Site "Chess.com"]
[Date "2021.04.06"]
[Round "8"]
[White "Nils_03"]
[Black "Brave_spirit12"]
[Result "1-0"]
[WhiteElo "2406"]
[BlackElo "2548"]
[TimeControl "180+1"]
[EndTime "11:27:19 PDT"]
[Termination "Nils_03 won by resignation"]

1. d4 {[%clk 0:03:00.9]} 1... Nf6 {[%clk 0:02:54.6]} 2. c4 {[%clk 0:03:01.4]}
2... c5 {[%clk 0:02:55]} 3. d5 {[%clk 0:03:01]} 3... b5 {[%clk 0:02:55.7]} 4.
cxb5 {[%clk 0:03:01]} 4... a6 {[%clk 0:02:56.6]} 5. bxa6 {[%clk 0:03:00.8]} 5...
Bxa6 {[%clk 0:02:57.5]} 6. Nc3 {[%clk 0:02:58.7]} 6... d6 {[%clk 0:02:56.1]} 7.
Nf3 {[%clk 0:02:59.3]} 7... g6 {[%clk 0:02:55.7]} 8. g3 {[%clk 0:02:59.9]} 8...
Bg7 {[%clk 0:02:55.7]} 9. Bg2 {[%clk 0:03:00.6]} 9... O-O {[%clk 0:02:56.4]} 10.
Rb1 {[%clk 0:03:01.1]} 10... Nbd7 {[%clk 0:02:57.3]} 11. O-O {[%clk 0:03:01]}
11... Qb6 {[%clk 0:02:55.2]} 12. Qc2 {[%clk 0:02:57.3]} 12... Rfb8 {[%clk
0:02:53.5]} 13. Re1 {[%clk 0:02:57.1]} 13... Ng4 {[%clk 0:02:51.9]} 14. Nd2
{[%clk 0:02:52.1]} 14... c4 {[%clk 0:02:44.4]} 15. Rf1 {[%clk 0:02:43.8]} 15...
Bd4 {[%clk 0:02:40.7]} 16. Nde4 {[%clk 0:02:31.6]} 16... f5 {[%clk 0:02:38.4]}
17. h3 {[%clk 0:02:22.1]} 17... fxe4 {[%clk 0:02:35.2]} 18. hxg4 {[%clk
0:02:22]} 18... e3 {[%clk 0:02:35.2]} 19. f4 {[%clk 0:02:15]} 19... Nf6 {[%clk
0:02:25.2]} 20. Bf3 {[%clk 0:02:10.8]} 20... Bc8 {[%clk 0:02:16]} 21. g5 {[%clk
0:02:10]} 21... Bf5 {[%clk 0:02:14]} 22. Ne4 {[%clk 0:02:05.8]} 22... Nxd5
{[%clk 0:02:12.7]} 23. Qxc4 {[%clk 0:02:00.4]} 23... Ra5 {[%clk 0:02:03.3]} 24.
b4 {[%clk 0:01:51.7]} 24... Be6 {[%clk 0:01:55.3]} 25. bxa5 {[%clk 0:01:48.2]}
25... Qxb1 {[%clk 0:01:55.4]} 26. Qxd4 {[%clk 0:01:48.8]} 26... Qxa2 {[%clk
0:01:52]} 27. Bxe3 {[%clk 0:01:46.9]} 27... Rb4 {[%clk 0:01:46]} 28. Qa7 {[%clk
0:01:42.2]} 28... Bh3 {[%clk 0:01:35.6]} 29. Rc1 {[%clk 0:01:35.3]} 29... Rb1
{[%clk 0:01:32.8]} 30. Qa8+ {[%clk 0:01:28]} 30... Kg7 {[%clk 0:01:26.3]} 31.
Bd4+ {[%clk 0:01:27.2]} 31... e5 {[%clk 0:01:26.4]} 32. Rxb1 {[%clk 0:01:07.2]}
32... Qxb1+ {[%clk 0:01:25.6]} 33. Kh2 {[%clk 0:01:07.8]} 1-0

[Event "*** Titled Tuesday Blitz"]
[Site "Chess.com"]
[Date "2021.04.06"]
[Round "8"]
[White "McCarthyStone"]
[Black "Cptn2"]
[Result "0-1"]
[WhiteElo "2394"]
[BlackElo "2535"]
[TimeControl "180+1"]
[EndTime "11:27:24 PDT"]
[Termination "Cptn2 won by resignation"]

1. Nf3 {[%clk 0:03:00.9]} 1... Nf6 {[%clk 0:02:59.2]} 2. c4 {[%clk 0:03:00.7]}
2... g6 {[%clk 0:02:58.1]} 3. Nc3 {[%clk 0:03:00.5]} 3... Bg7 {[%clk 0:02:57.8]}
4. d4 {[%clk 0:03:01]} 4... d5 {[%clk 0:02:56.7]} 5. cxd5 {[%clk 0:03:01.9]}
5... Nxd5 {[%clk 0:02:56.7]} 6. e4 {[%clk 0:03:02.8]} 6... Nxc3 {[%clk
0:02:55.7]} 7. bxc3 {[%clk 0:03:03.7]} 7... O-O {[%clk 0:02:56.6]} 8. Be3 {[%clk
0:03:01.6]} 8... c5 {[%clk 0:02:56.2]} 9. Be2 {[%clk 0:03:02]} 9... Nc6 {[%clk
0:02:56.4]} 10. O-O {[%clk 0:02:59.9]} 10... Bg4 {[%clk 0:02:56.9]} 11. d5
{[%clk 0:03:00]} 11... Ne5 {[%clk 0:02:56.4]} 12. Nxe5 {[%clk 0:02:56.3]} 12...
Bxe2 {[%clk 0:02:55.9]} 13. Qxe2 {[%clk 0:02:55.6]} 13... Bxe5 {[%clk
0:02:56.8]} 14. Bxc5 {[%clk 0:02:55.2]} 14... Bxh2+ {[%clk 0:02:49.1]} 15. Kxh2
{[%clk 0:02:51.9]} 15... Qc7+ {[%clk 0:02:48.7]} 16. g3 {[%clk 0:02:32.9]} 16...
Qxc5 {[%clk 0:02:46.6]} 17. Rac1 {[%clk 0:02:33.5]} 17... b5 {[%clk 0:02:43]}
18. Rfd1 {[%clk 0:02:33]} 18... Rac8 {[%clk 0:02:36.2]} 19. Kg2 {[%clk
0:02:29.6]} 19... Rfd8 {[%clk 0:02:35]} 20. Qd2 {[%clk 0:02:17.3]} 20... e6
{[%clk 0:02:26.9]} 21. d6 {[%clk 0:02:14.2]} 21... Rc6 {[%clk 0:02:26]} 22. Qh6
{[%clk 0:02:11.4]} 22... Qe5 {[%clk 0:02:18.9]} 23. Rh1 {[%clk 0:02:00.3]} 23...
Qxe4+ {[%clk 0:01:55.5]} 24. Kg1 {[%clk 0:01:48.5]} 24... Rcxd6 {[%clk
0:01:53.7]} 25. Qxh7+ {[%clk 0:01:48.8]} 25... Kf8 {[%clk 0:01:53]} 26. Qh6+
{[%clk 0:01:45.6]} 26... Ke8 {[%clk 0:01:48.8]} 27. Qh8+ {[%clk 0:01:31]} 27...
Ke7 {[%clk 0:01:40.4]} 28. Qh4+ {[%clk 0:01:26.4]} 28... Qxh4 {[%clk 0:01:39]}
29. Rxh4 {[%clk 0:01:27.3]} 29... Rd1+ {[%clk 0:01:21.5]} 30. Rxd1 {[%clk
0:01:27.3]} 30... Rxd1+ {[%clk 0:01:22.4]} 31. Kg2 {[%clk 0:01:28.2]} 31... Ra1
{[%clk 0:01:23]} 32. Rb4 {[%clk 0:01:20.6]} 32... a6 {[%clk 0:01:22.1]} 33. Rb2
{[%clk 0:01:19.2]} 33... Kd6 {[%clk 0:01:17.5]} 34. Kf3 {[%clk 0:01:10.9]} 34...
Kd5 {[%clk 0:01:16.7]} 35. Ke3 {[%clk 0:01:11.3]} 35... Kc4 {[%clk 0:01:15.4]}
36. Kd2 {[%clk 0:01:11.1]} 36... a5 {[%clk 0:01:14.6]} 37. Kc2 {[%clk
0:01:04.8]} 37... Rf1 {[%clk 0:01:12.6]} 0-1

[Event "*** Titled Tuesday Blitz"]
[Site "Chess.com"]
[Date "2021.04.06"]
[Round "8"]
[White "Fortitudine"]
[Black "UKR_Master"]
[Result "0-1"]
[WhiteElo "2278"]
[BlackElo "2488"]
[TimeControl "180+1"]
[EndTime "11:27:35 PDT"]
[Termination "UKR_Master won on time"]

1. c4 {[%clk 0:03:00.9]} 1... Nf6 {[%clk 0:03:00.2]} 2. g3 {[%clk 0:02:58.4]}
2... c6 {[%clk 0:02:59.8]} 3. Bg2 {[%clk 0:02:58.3]} 3... d5 {[%clk 0:03:00.7]}
4. Nf3 {[%clk 0:02:58.4]} 4... g6 {[%clk 0:03:01.1]} 5. b3 {[%clk 0:02:58.2]}
5... Bg7 {[%clk 0:03:00.9]} 6. Bb2 {[%clk 0:02:58.5]} 6... O-O {[%clk
0:03:01.8]} 7. O-O {[%clk 0:02:58.5]} 7... a5 {[%clk 0:03:02.6]} 8. Nc3 {[%clk
0:02:50.9]} 8... Ne4 {[%clk 0:02:51.8]} 9. Qc2 {[%clk 0:02:43]} 9... Bf5 {[%clk
0:02:50.9]} 10. d3 {[%clk 0:02:28.9]} 10... Nxc3 {[%clk 0:02:50.8]} 11. Bxc3
{[%clk 0:02:29.5]} 11... d4 {[%clk 0:02:51.1]} 12. Bb2 {[%clk 0:02:12.4]} 12...
c5 {[%clk 0:02:50.1]} 13. Rad1 {[%clk 0:02:07.9]} 13... a4 {[%clk 0:02:50]} 14.
Nh4 {[%clk 0:01:39.3]} 14... Bc8 {[%clk 0:02:49]} 15. e3 {[%clk 0:01:23.2]}
15... Nc6 {[%clk 0:02:49.9]} 16. Nf3 {[%clk 0:01:07.7]} 16... e5 {[%clk
0:02:47.6]} 17. exd4 {[%clk 0:01:06.1]} 17... exd4 {[%clk 0:02:35.2]} 18. Bc1
{[%clk 0:00:52.1]} 18... Qb6 {[%clk 0:02:31.4]} 19. Bf4 {[%clk 0:00:42.2]} 19...
Bf5 {[%clk 0:02:31]} 20. Nh4 {[%clk 0:00:37.7]} 20... Be6 {[%clk 0:02:19.6]} 21.
Rfe1 {[%clk 0:00:29.6]} 21... axb3 {[%clk 0:02:17.5]} 22. axb3 {[%clk
0:00:29.2]} 22... Ra3 {[%clk 0:02:14]} 23. Rb1 {[%clk 0:00:28.5]} 23... Rfa8
{[%clk 0:02:11.3]} 24. Nf3 {[%clk 0:00:14.8]} 24... Ra2 {[%clk 0:02:10.5]} 25.
Rb2 {[%clk 0:00:14.8]} 25... Nb4 {[%clk 0:02:10.4]} 26. Rxa2 {[%clk 0:00:09]}
26... Rxa2 {[%clk 0:02:08.7]} 27. Qb1 {[%clk 0:00:09.1]} 27... h6 {[%clk
0:02:05.5]} 28. Be5 {[%clk 0:00:08.5]} 28... Bf5 {[%clk 0:02:04.1]} 29. Bxg7
{[%clk 0:00:07.8]} 29... Kxg7 {[%clk 0:02:04.8]} 30. Ne5 {[%clk 0:00:04.5]}
30... Rd2 {[%clk 0:01:54.9]} 31. Be4 {[%clk 0:00:03.1]} 31... Be6 {[%clk
0:01:52.6]} 32. Nf3 {[%clk 0:00:02]} 32... Ra2 {[%clk 0:01:50.1]} 0-1

[Event "*** Titled Tuesday Blitz"]
[Site "Chess.com"]
[Date "2021.04.06"]
[Round "8"]
[White "RD4ever"]
[Black "StockholmMissile"]
[Result "1-0"]
[WhiteElo "2885"]
[BlackElo "2601"]
[TimeControl "180+1"]
[EndTime "11:27:36 PDT"]
[Termination "RD4ever won by resignation"]

1. d4 {[%clk 0:03:00.9]} 1... d5 {[%clk 0:02:58.3]} 2. c4 {[%clk 0:03:00.9]}
2... c6 {[%clk 0:02:56.4]} 3. Nf3 {[%clk 0:03:00.5]} 3... Nf6 {[%clk 0:02:56.4]}
4. Nc3 {[%clk 0:03:01.1]} 4... e6 {[%clk 0:02:55.9]} 5. e3 {[%clk 0:02:54.2]}
5... a6 {[%clk 0:02:55.2]} 6. c5 {[%clk 0:02:41.6]} 6... Nbd7 {[%clk 0:02:53.9]}
7. Bd2 {[%clk 0:02:33.8]} 7... g6 {[%clk 0:02:50.8]} 8. Bd3 {[%clk 0:02:27.3]}
8... Bg7 {[%clk 0:02:50.4]} 9. O-O {[%clk 0:02:27.4]} 9... Qe7 {[%clk
0:02:45.2]} 10. b4 {[%clk 0:02:26]} 10... O-O {[%clk 0:02:42.9]} 11. Re1 {[%clk
0:02:24.8]} 11... e5 {[%clk 0:02:33.7]} 12. e4 {[%clk 0:02:23.7]} 12... dxe4
{[%clk 0:02:32.6]} 13. Nxe4 {[%clk 0:02:01.4]} 13... Nxe4 {[%clk 0:02:30.1]} 14.
Bxe4 {[%clk 0:01:58.3]} 14... f5 {[%clk 0:02:28.5]} 15. Bc2 {[%clk 0:01:53.4]}
15... e4 {[%clk 0:02:27.4]} 16. Bb3+ {[%clk 0:01:47.7]} 16... Kh8 {[%clk
0:02:27]} 17. Bf4 {[%clk 0:01:41.8]} 17... Qd8 {[%clk 0:02:05.1]} 18. Ng5 {[%clk
0:01:40.5]} 18... Nf6 {[%clk 0:02:00.5]} 19. Nf7+ {[%clk 0:01:27.9]} 19... Rxf7
{[%clk 0:02:00.4]} 20. Bxf7 {[%clk 0:01:28.8]} 20... Nd5 {[%clk 0:01:58]} 21.
Be5 {[%clk 0:01:29]} 21... Nxb4 {[%clk 0:01:43.7]} 22. Bc4 {[%clk 0:01:28.8]}
22... Qe7 {[%clk 0:01:32]} 23. Qb3 {[%clk 0:01:27.5]} 23... Nd5 {[%clk
0:01:30.7]} 24. Bxd5 {[%clk 0:01:26.6]} 24... cxd5 {[%clk 0:01:31.6]} 25. Qxd5
{[%clk 0:01:27.5]} 25... Be6 {[%clk 0:01:31.1]} 26. Qd6 {[%clk 0:01:26.9]} 26...
Qf7 {[%clk 0:01:30.6]} 27. Rab1 {[%clk 0:01:22.8]} 27... Bxa2 {[%clk 0:01:27.5]}
28. Rb6 {[%clk 0:01:19.9]} 28... Bd5 {[%clk 0:01:20.2]} 29. Bxg7+ {[%clk
0:01:16.7]} 29... Kxg7 {[%clk 0:01:19.9]} 30. Qe5+ {[%clk 0:01:17.6]} 30... Kh6
{[%clk 0:01:10.5]} 31. Rf6 {[%clk 0:01:15.9]} 31... Qg8 {[%clk 0:01:08.1]} 32.
Rd6 {[%clk 0:01:06.4]} 32... Bc4 {[%clk 0:00:48.7]} 33. Re3 {[%clk 0:01:04.9]}
1-0

[Event "*** Titled Tuesday Blitz"]
[Site "Chess.com"]
[Date "2021.04.06"]
[Round "8"]
[White "Joseacorrea"]
[Black "chesslh19"]
[Result "0-1"]
[WhiteElo "2078"]
[BlackElo "2238"]
[TimeControl "180+1"]
[EndTime "11:27:37 PDT"]
[Termination "chesslh19 won by resignation"]

1. c4 {[%clk 0:02:58.7]} 1... e6 {[%clk 0:02:55]} 2. Nc3 {[%clk 0:02:54.5]} 2...
d5 {[%clk 0:02:55.3]} 3. cxd5 {[%clk 0:02:55.4]} 3... exd5 {[%clk 0:02:56.1]} 4.
d4 {[%clk 0:02:55.6]} 4... Nf6 {[%clk 0:02:56.6]} 5. Nf3 {[%clk 0:02:55.8]} 5...
c6 {[%clk 0:02:55]} 6. Bf4 {[%clk 0:02:44.8]} 6... Bf5 {[%clk 0:02:49.1]} 7. e3
{[%clk 0:02:44.9]} 7... Bd6 {[%clk 0:02:47]} 8. Bg3 {[%clk 0:02:44.3]} 8... O-O
{[%clk 0:02:43.9]} 9. Bd3 {[%clk 0:02:43.9]} 9... Bxd3 {[%clk 0:02:43.8]} 10.
Qxd3 {[%clk 0:02:43.1]} 10... Bxg3 {[%clk 0:02:43]} 11. hxg3 {[%clk 0:02:44]}
11... Nbd7 {[%clk 0:02:41]} 12. Ne5 {[%clk 0:02:41.8]} 12... Re8 {[%clk
0:02:37.1]} 13. f4 {[%clk 0:02:37.4]} 13... h6 {[%clk 0:02:22.7]} 14. g4 {[%clk
0:02:37.2]} 14... Nxe5 {[%clk 0:02:18.2]} 15. fxe5 {[%clk 0:02:34.2]} 15... Nxg4
{[%clk 0:02:12.6]} 16. Ke2 {[%clk 0:02:18.1]} 16... Qg5 {[%clk 0:02:04.8]} 17.
Raf1 {[%clk 0:02:11.5]} 17... f6 {[%clk 0:02:01]} 18. Rf5 {[%clk 0:02:00.1]}
18... Qg6 {[%clk 0:01:53.9]} 19. Rhf1 {[%clk 0:01:43.9]} 19... Kh7 {[%clk
0:01:44.9]} 20. R1f3 {[%clk 0:01:35]} 20... fxe5 {[%clk 0:01:33.2]} 21. dxe5
{[%clk 0:00:56.6]} 21... Nxe5 {[%clk 0:01:31.9]} 22. Rxe5 {[%clk 0:00:56.4]}
22... Qxd3+ {[%clk 0:01:28.3]} 23. Kxd3 {[%clk 0:00:57.3]} 23... Rxe5 {[%clk
0:01:28.8]} 24. Rf7 {[%clk 0:00:55.2]} 24... Rae8 {[%clk 0:01:26]} 25. Rxb7
{[%clk 0:00:53.2]} 25... Rxe3+ {[%clk 0:01:26.1]} 26. Kc2 {[%clk 0:00:53.8]}
26... R3e7 {[%clk 0:01:26.5]} 27. Rb4 {[%clk 0:00:50.4]} 27... g5 {[%clk
0:01:22.9]} 28. g4 {[%clk 0:00:48.9]} 28... Kg6 {[%clk 0:01:22.5]} 29. Kb3
{[%clk 0:00:46.5]} 29... h5 {[%clk 0:01:22.1]} 30. gxh5+ {[%clk 0:00:45.9]}
30... Kxh5 {[%clk 0:01:23]} 31. Na4 {[%clk 0:00:39.2]} 31... g4 {[%clk
0:01:17.7]} 32. Nc5 {[%clk 0:00:37]} 32... g3 {[%clk 0:01:15.6]} 33. Rd4 {[%clk
0:00:37.4]} 33... g2 {[%clk 0:01:14.8]} 34. Rd1 {[%clk 0:00:34.7]} 34... Re1
{[%clk 0:01:14.7]} 0-1